fUST/lending_fUST_20241209
["ID","MTS","AMOUNT","RATE_DAILY","PERIOD"]
[344656185,1733694646250,-10790.28011141,0.00026,2]
[344656186,1733694646261,-1000.5,0.00026,31]
[344656187,1733694646270,-1051.1,0.00026,31]
[344656188,1733694646280,-26657.94316949,0.00026,30]
[344656189,1733694646290,-859.23006,0.00026,7]
[344656190,1733694646299,-859.23006,0.00026,7]
[344656191,1733694646309,-859.23006,0.00026,7]
[344656192,1733694646319,-859.23006,0.00026,7]
[344656193,1733694646329,-859.23006,0.00026,7]
[344656194,1733694646338,-151.0,0.00026,7]
[344656195,1733694646348,-151.0,0.00026,7]
[344656196,1733694646357,-151.0,0.00026,7]
[344656197,1733694646367,-151.0,0.00026,7]
[344656198,1733694646376,-151.0,0.00026,7]
[344656199,1733694646385,-151.0,0.00026,7]
[344656200,1733694646394,-150.15,0.00026,2]
[344656201,1733694646404,-151.0,0.00026,7]
[344656202,1733694646412,-151.0,0.00026,7]
[344656203,1733694646422,-500.0,0.00026,2]
[344656204,1733694646432,-150.15,0.00026,2]
[344656205,1733694646441,-150.60173938,0.00026,2]
[344656206,1733694646451,-151.0,0.00026,7]
[344656207,1733694646461,-151.0,0.00026,7]
[344656208,1733694646471,-151.0,0.00026,7]
[344656209,1733694646481,-151.0,0.00026,7]
[344656210,1733694646491,-151.0,0.00026,7]
[344656211,1733694646501,-151.0,0.00026,7]
[344656212,1733694646510,-151.0,0.00026,7]
[344656213,1733694646519,-151.0,0.00026,7]
[344656214,1733694646529,-151.0,0.00026,7]
[344656215,1733694646538,-151.0,0.00026,7]
[344656216,1733694646548,-151.0,0.00026,7]
[344656217,1733694646558,-151.0,0.00026,7]
[344656218,1733694646569,-151.0,0.00026,7]
[344656219,1733694646579,-151.0,0.00026,7]
[344656220,1733694646589,-151.0,0.00026,7]
[344656221,1733694646599,-151.0,0.00026,7]
[344656222,1733694646608,-151.0,0.00026,7]
[344656223,1733694646618,-500.0,0.00026,2]
[344656224,1733694646628,-500.0,0.00026,2]
[344656225,1733694646637,-985.91775253,0.00026,2]
[344656226,1733694646647,-150.15,0.00026,2]
[344656227,1733694646656,-208.82920722,0.00026,2]
[344656228,1733694646666,-7015.625,0.00026,7]
[344656229,1733694646676,-7015.625,0.00026,7]
[344656230,1733694646686,-7015.625,0.00026,7]
[344656231,1733694646696,-500.0,0.00026074,2]
[344656232,1733694646706,-157.124171,0.00026088,2]
[344656233,1733694646716,-420.0,0.00026244,2]
[344656234,1733694646725,-189.099345,0.00026246,2]
[344656235,1733694646734,-1000.0,0.00026248,2]
[344656236,1733694646814,-170.821732,0.00026274,2]
[344656237,1733694646828,-150.15,0.00026274,2]
[344656238,1733694646838,-500.0,0.00026274,2]
[344656239,1733694646848,-200.80005224,0.00026274,2]
[344656240,1733694646857,-674.19680192,0.00026274,2]
[344656241,1733694646867,-500.0,0.00026274,2]
[344656242,1733694646877,-660.0,0.00026384,2]
[344656243,1733694646887,-2000.0,0.000265,2]
[344656244,1733694646897,-300.0,0.000265,12]
[344656245,1733694646907,-859.23006,0.000265,7]
[344656246,1733694646917,-188.508884,0.000265,7]
[344656247,1733694646927,-151.0,0.000265,7]
[344656248,1733694646937,-151.0,0.000265,7]
[344656249,1733694646947,-1000.0,0.00026521,2]
[344656250,1733694646957,-267.04192677,0.00026548,2]
[344656251,1733694646967,-804.15474488,0.00026548,2]
[344656252,1733694646977,-500.0,0.00026548,2]
[344656253,1733694646987,-152.83,0.000266,31]
[344656254,1733694646996,-152.83,0.000266,31]
[344656255,1733694647007,-152.83,0.000266,31]
[344656256,1733694647017,-152.83,0.000266,31]
[344656257,1733694647027,-152.83,0.000266,31]
[344656258,1733694647037,-152.83,0.000266,31]
[344656259,1733694647047,-152.83,0.000266,31]
[344656260,1733694647057,-152.83,0.000266,31]
[344656261,1733694647067,-152.83,0.000266,31]
[344656262,1733694647078,-152.83,0.000266,31]
[344656263,1733694647087,-152.83,0.000266,31]
[344656264,1733694647097,-218.228303,0.00026681,7]
[344656265,1733694647108,-3200.0,0.00026681,2]
[344656266,1733694647118,-651.586,0.00026681,2]
[344656267,1733694647128,-204.10196,0.000267,7]
[344656268,1733694647138,-909.73159706,0.00026822,2]
[344656269,1733694647148,-859.23006,0.00026822,7]
[344656270,1733694647161,-151.0,0.00026822,7]
[344656271,1733694647171,-859.23006,0.00026859,7]
[344656272,1733694647180,-859.230058,0.00026859,7]
[344656273,1733694647190,-532.0,0.00026859,2]
[344656274,1733694647200,-2166.0,0.00026859,2]
[344656275,1733694647210,-2372.0,0.00026859,2]
[344656276,1733694647219,-4494.40401153,0.0002688,2]
[344656277,1733694647229,-500.0,0.00026973,2]
[344656278,1733694647239,-323.57268359,0.00026973,2]
[344656279,1733694647251,-151.0,0.00026973,7]
[344656280,1733694647262,-160.0,0.00026994,3]
[344656281,1733694647272,-2000.0,0.00027,2]
[344656282,1733694647283,-200.0,0.00027,120]
[344656283,1733694647293,-87312.43644712,0.00027,2]
[344656284,1733694647303,-3619.81950716,0.00027,2]
[344656285,1733694647313,-180.06867912,0.00027,2]
[344656286,1733694647322,-3671.33,0.00027,14]
[344656287,1733694647332,-1791.46412636,0.00027245,2]
[344656288,1733694647342,-1500.0,0.0002725,2]
[344656289,1733694647352,-2902.12592396,0.00027297,2]
[344656290,1733694647361,-160.0,0.00027384,4]
[344656291,1733694647372,-212.03339836,0.00027397,2]
[344656292,1733694647381,-632.07,0.00027397,5]
[344656293,1733694647390,-500.0,0.00027397,2]
[344656294,1733694647401,-400.62552899,0.00027397,60]
[344656295,1733694647410,-166.755033,0.00027397,7]
[344656296,1733694647419,-166.755033,0.00027397,7]
[344656297,1733694647429,-166.755033,0.00027397,7]
[344656298,1733694647439,-166.755033,0.00027397,7]
[344656299,1733694647449,-166.755033,0.00027397,7]
[344656300,1733694647458,-166.755033,0.00027397,7]
[344656301,1733694647468,-166.755033,0.00027397,7]
[344656302,1733694647478,-166.755033,0.00027397,7]
[344656303,1733694647488,-166.755033,0.00027397,7]
[344656304,1733694647497,-166.755033,0.00027397,7]
[344656305,1733694647507,-166.755033,0.00027397,7]
[344656306,1733694647516,-166.755028,0.00027397,7]
[344656307,1733694647525,-151.0,0.00027397,7]
[344656308,1733694647535,-151.0,0.00027397,7]
[344656309,1733694647544,-151.0,0.00027397,7]
[344656310,1733694647555,-162.748262,0.00027397,7]
[344656311,1733694647565,-534.66782151,0.000274,2]
[344656312,1733694647575,-20660.14,0.000274,30]
[344656313,1733694647585,-189.099345,0.00027425,2]
[344656314,1733694647594,-2000.0,0.000275,2]
[344656315,1733694647604,-150.09927,0.000275,2]
[344656316,1733694647613,-38288.64278822,0.000275,2]
[344656317,1733694647624,-3367.23075284,0.000275,30]
[344656318,1733694647633,-152.83,0.000275,31]
[344656319,1733694647642,-152.83,0.000275,31]
[344656320,1733694647652,-152.83,0.000275,31]
[344656321,1733694647662,-152.83,0.000275,31]
[344656322,1733694647672,-152.83,0.000275,31]
[344656323,1733694647683,-152.83,0.000275,31]
[344656324,1733694647692,-152.83,0.000275,31]
[344656325,1733694647702,-152.83,0.000275,31]
[344656326,1733694647712,-152.83,0.000275,31]
[344656327,1733694647721,-152.83,0.000275,31]
[344656328,1733694647731,-152.83,0.000275,31]
[344656329,1733694647741,-152.83,0.000275,31]
[344656330,1733694647751,-152.83,0.000275,31]
[344656331,1733694647761,-152.83,0.000275,31]
[344656332,1733694647771,-152.83,0.000275,31]
[344656333,1733694647781,-152.83,0.000275,31]
[344656334,1733694647791,-152.83,0.000275,31]
[344656335,1733694647800,-152.83,0.000275,31]
[344656336,1733694647809,-152.83,0.000275,31]
[344656337,1733694647820,-152.83,0.000275,31]
[344656338,1733694647834,-152.83,0.000275,31]
[344656339,1733694647844,-152.83,0.000275,31]
[344656340,1733694647854,-1011.20894425,0.00027505,3]
[344656341,1733694647863,-1000.0,0.00027521,5]
[344656342,1733694647873,-1500.0,0.00027522,5]
[344656343,1733694647883,-2902.12592387,0.00027639,2]
[344656344,1733694647893,-500.0,0.00027671,2]
[344656345,1733694647903,-223.625323,0.00027671,2]
[344656346,1733694647913,-223.625323,0.00027671,120]
[344656347,1733694647923,-160.0,0.00027774,5]
[344656348,1733694647932,-168.394439,0.00027794,2]
[344656349,1733694647942,-516.36,0.000278,2]
[344656350,1733694647951,-609.36104907,0.000278,5]
[344656351,1733694647961,-500.0,0.000278,5]
[344656352,1733694647971,-500.0,0.000278,5]
[344656353,1733694647981,-562.26853534,0.000278,5]
[344656354,1733694648047,-557.69480427,0.000278,5]
[344656355,1733694648065,-1149.07,0.00027899,15]
[344656356,1733694648076,-504.73129196,0.00027923,2]
[344656357,1733694648086,-500.0,0.00027945,2]
[344656358,1733694648096,-2902.12592387,0.0002798,2]
[344656359,1733694648106,-30616.33555269,0.0002799,2]
[344656360,1733694648116,-2000.0,0.00028,2]
[344656361,1733694648126,-637.99703661,0.00028,7]
[344656362,1733694648136,-250.0,0.00028,120]
[344656363,1733694648145,-835.82529638,0.00028,60]
[344656364,1733694648157,-15962.89433858,0.00028,7]
[344656365,1733694648167,-2611.02441308,0.00028,14]
[344656366,1733694648177,-300.0,0.00028,13]
[344656367,1733694648187,-20322.92,0.00028,20]
[344656368,1733694648197,-1791.46412636,0.00028027,2]
[344656369,1733694648207,-587.0,0.00028066,2]
[344656370,1733694648216,-216.0,0.0002815,23]
[344656371,1733694648226,-160.0,0.00028164,6]
[344656372,1733694648238,-5000.0,0.00028199,30]
[344656373,1733694648249,-500.0,0.00028219,2]
[344656374,1733694648258,-168.394439,0.00028258,2]
[344656375,1733694648267,-2902.12592387,0.00028322,2]
[344656376,1733694648276,-1000.0,0.00028348,5]
[344656377,1733694648286,-500.37728091,0.00028348,5]
[344656378,1733694648295,-4028.2,0.00028484,30]
[344656379,1733694648306,-500.0,0.00028493,2]
[344656380,1733694648316,-152.83,0.000285,31]
[344656381,1733694648326,-152.83,0.000285,31]
[344656382,1733694648337,-152.83,0.000285,31]
[344656383,1733694648347,-152.83,0.000285,31]
[344656384,1733694648357,-152.83,0.000285,31]
[344656385,1733694648367,-152.83,0.000285,31]
[344656386,1733694648377,-152.83,0.000285,31]
[344656387,1733694648387,-152.83,0.000285,31]
[344656388,1733694648397,-152.83,0.000285,31]
[344656389,1733694648406,-152.83,0.000285,31]
[344656390,1733694648415,-152.83,0.000285,31]
[344656391,1733694648425,-152.83,0.000285,31]
[344656392,1733694648434,-152.83,0.000285,31]
[344656393,1733694648444,-152.83,0.000285,31]
[344656394,1733694648454,-152.83,0.000285,31]
[344656395,1733694648463,-152.83,0.000285,31]
[344656396,1733694648474,-152.83,0.000285,31]
[344656397,1733694648483,-152.83,0.000285,31]
[344656398,1733694648492,-152.83,0.000285,31]
[344656399,1733694648502,-152.83,0.000285,31]
[344656400,1733694648512,-152.83,0.000285,31]
[344656401,1733694648521,-152.83,0.000285,31]
[344656402,1733694648531,-523.78806786,0.00028522,5]
[344656403,1733694648542,-2000.0,0.00028547,5]
[344656404,1733694648551,-160.0,0.00028554,7]
[344656405,1733694648562,-2902.12592387,0.00028664,2]
[344656406,1733694648572,-239.250146,0.000287,20]
[344656407,1733694648582,-3671.33,0.000287,30]
[344656408,1733694648592,-168.394439,0.00028721,2]
[344656409,1733694648601,-500.0,0.00028767,2]
[344656410,1733694648612,-632.07,0.00028767,6]
[344656411,1733694648621,-19224.3211183,0.00028767,2]
[344656412,1733694648632,-165.02762653,0.000288,7]
[344656413,1733694648641,-1791.46412636,0.00028809,2]
[344656414,1733694648652,-2000.0,0.0002882,5]
[344656415,1733694648662,-587.0,0.00028869,2]
[344656416,1733694648672,-6475.10134386,0.00028878,2]
[344656417,1733694648681,-20660.14,0.000289,30]
[344656418,1733694648691,-160.0,0.00028944,8]
[344656419,1733694648700,-500.0,0.00028973,5]
[344656420,1733694648710,-500.0,0.00028973,5]
[344656421,1733694648719,-2000.0,0.00029,2]
[344656422,1733694648728,-857.98304511,0.00029,15]
[344656423,1733694648738,-33936.83377786,0.00029,2]
[344656424,1733694648747,-863.70973906,0.00029,2]
[344656425,1733694648758,-28754.78429857,0.00029,30]
[344656426,1733694648768,-299.336699,0.00029,10]
[344656427,1733694648777,-2902.12592387,0.00029005,2]
[344656428,1733694648787,-500.0,0.00029041,2]
[344656429,1733694648797,-500.0,0.00029073,5]
[344656430,1733694648807,-105077.99639342,0.000291,2]
[344656431,1733694648817,-147419.82277134,0.000291,2]
[344656432,1733694648827,-18793.0320359,0.000291,2]
[344656433,1733694648836,-168.394439,0.00029184,2]
[344656434,1733694648846,-965.15264417,0.00029315,2]
[344656435,1733694648856,-160.0,0.00029335,9]
[344656436,1733694648865,-2902.12592387,0.00029347,2]
[344656437,1733694648875,-1500.0,0.0002935,5]
[344656438,1733694648884,-152.83,0.000294,31]
[344656439,1733694648894,-152.83,0.000294,31]
[344656440,1733694648904,-152.83,0.000294,31]
[344656441,1733694648913,-152.83,0.000294,31]
[344656442,1733694648923,-152.83,0.000294,31]
[344656443,1733694648932,-152.83,0.000294,31]
[344656444,1733694648941,-152.83,0.000294,31]
[344656445,1733694648951,-152.83,0.000294,31]
[344656446,1733694648960,-152.83,0.000294,31]
[344656447,1733694648970,-152.83,0.000294,31]
[344656448,1733694648980,-152.83,0.000294,31]
[344656449,1733694648989,-152.83,0.000294,31]
[344656450,1733694648999,-152.83,0.000294,31]
[344656451,1733694649008,-152.83,0.000294,31]
[344656452,1733694649018,-152.83,0.000294,31]
[344656453,1733694649027,-152.83,0.000294,31]
[344656454,1733694649037,-152.83,0.000294,31]
[344656455,1733694649047,-152.83,0.000294,31]
[344656456,1733694649056,-152.83,0.000294,31]
[344656457,1733694649066,-152.83,0.000294,31]
[344656458,1733694649078,-152.83,0.000294,31]
[344656459,1733694649087,-152.83,0.000294,31]
[344656460,1733694649097,-151.0,0.000295,12]
[344656461,1733694649106,-300.0,0.000295,14]
[344656462,1733694649116,-1000.0,0.00029521,5]
[344656463,1733694649189,-501.63269463,0.00029521,5]
[344656464,1733694649199,-1791.46412636,0.0002959,2]
[344656465,1733694649209,-457.68038971,0.00029621,5]
[344656466,1733694649218,-2902.12592387,0.00029689,2]
[344656467,1733694649227,-160.0,0.00029725,10]
[344656468,1733694649240,-447.02,0.00029734,2]
[344656469,1733694649253,-620.22,0.0002974,120]
[344656470,1733694649262,-4907.32774916,0.0002975,2]
[344656471,1733694649272,-1370.11252576,0.000298,33]
[344656472,1733694649281,-395.13,0.00029859,2]
[344656473,1733694649290,-2107.35264184,0.00029859,2]
[344656474,1733694649309,-58.64735816,0.00029859,2]
[344656475,1733694649319,-2338.045,0.00029859,2]
[344656476,1733694649328,-666.0,0.000299,2]
[344656477,1733694649337,-2445.40564979,0.0002998,7]
[344656478,1733694649348,-9564.08945822,0.0002998,7]
[344656479,1733694649358,-104.80191857,0.0002999,7]
[344656485,1733694935143,165.512235,0.00013973,2]
[344656487,1733695139572,220.0,0.00017651,2]
[344656524,1733695832202,-165.512235,0.00020807,2]
[344656525,1733695832212,-150.0,0.000237,2]
[344656526,1733695832222,-1165.623,0.00024365,2]
[344656527,1733695832231,-1188.58675012,0.00024413,2]
[344656575,1733695837991,-5827.03824988,0.00024413,2]
[344656576,1733695838001,-300.0,0.00025,11]
[344656577,1733695838010,-25.79777497,0.00025705,2]
[344656578,1733695838022,-151.10724803,0.00025705,2]
[344656579,1733695838031,-488.0,0.00026,2]
[344656580,1733695838040,-300.0,0.00026288,2]
[344656581,1733695838049,-300.0,0.00026288,2]
[344656582,1733695838058,-488.0,0.00026289,2]
[344656583,1733695838068,-326.81369161,0.00026384,2]
[344656584,1733695838079,-333.18630839,0.00026384,2]
[344656585,1733695838090,-300.0,0.000265,12]
[344656586,1733695838099,-153.17,0.000266,31]
[344656587,1733695838109,-153.17,0.000266,31]
[344656588,1733695838119,-298.47369161,0.00026637,2]
[344656595,1733695840039,-2901.52630839,0.00026637,2]
[344656596,1733695840049,-4101.7044035,0.00027264,2]
[344656597,1733695840059,-488.0,0.00027316,2]
[344656598,1733695840070,-579.39,0.00027397,5]
[344656599,1733695840079,-442.53160282,0.00027397,60]
[344656600,1733695840089,-153.17,0.000275,31]
[344656601,1733695840100,-153.17,0.000275,31]
[344656602,1733695840109,-153.17,0.000275,31]
[344656603,1733695840119,-153.17,0.000275,31]
[344656604,1733695840129,-165.512235,0.00027641,2]
[344656605,1733695840139,-464.72,0.000278,2]
[344656606,1733695840148,-159.05398699,0.000278,17]
[344656607,1733695840158,-151.0,0.00027979,6]
[344656608,1733695840167,-300.0,0.00028,13]
[344656609,1733695840176,-1101.33,0.00028081,15]
[344656610,1733695840186,-401.0,0.0002815,23]
[344656611,1733695840195,-569.797,0.000284,2]
[344656612,1733695840205,-420.0,0.00028441,2]
[344656613,1733695840214,-151.0,0.00028481,6]
[344656614,1733695840224,-153.17,0.000285,31]
[344656615,1733695840233,-153.17,0.000285,31]
[344656616,1733695840244,-153.17,0.000285,31]
[344656617,1733695840254,-153.17,0.000285,31]
[344656618,1733695840264,-490.0,0.00028681,2]
[344656619,1733695840274,-579.39,0.00028767,6]
[344656620,1733695840283,-420.0,0.00028917,2]
[344656621,1733695840293,-151.0,0.00028982,7]
[344656622,1733695840303,-153.17,0.000294,31]
[344656623,1733695840313,-153.17,0.000294,31]
[344656624,1733695840323,-153.17,0.000294,31]
[344656625,1733695840333,-153.17,0.000294,31]
[344656626,1733695840342,-151.0,0.00029484,7]
[344656627,1733695840352,-300.0,0.000295,14]
[344656628,1733695840363,-666.0,0.000299,2]
[344656629,1733695840372,-580.42518481,0.000299,2]
[344656630,1733695840381,-580.42518477,0.0002995,2]
[344656631,1733695840391,-500.0,0.00029973,5]
[344656632,1733695840401,-500.0,0.00029973,5]
[344656633,1733695840410,-151.0,0.00029985,7]
[344656634,1733695840420,-238.65910273,0.00029989,2]
[344656635,1733695840430,-192225.46907701,0.0002999,7]
[344656636,1733695840442,-3271.81767709,0.0002999,7]
[344656637,1733695840453,-1676.13373716,0.0002999,7]
[344656638,1733695840464,-713.95701685,0.0002999,7]
[344656639,1733695840476,-45580.04085754,0.0002999,7]
[344656640,1733695840486,-7015.625,0.0002999,7]
[344656641,1733695840495,-7015.625,0.0002999,7]
[344656642,1733695840504,-5450.84734226,0.0002999,7]
[344656662,1733695843436,-1011.0,0.00028081,15]
[344656663,1733695843445,-500.0,0.00029973,5]
[344656664,1733695843455,-1564.77765774,0.0002999,7]
[344656665,1733695843465,-6679.48929947,0.00029999,2]
[344656666,1733695843475,-530.77670202,0.0003,10]
[344656667,1733695843484,-2000.0,0.0003,2]
[344656668,1733695843494,-21042.03562923,0.0003,120]
[344656669,1733695843504,-11907.97522537,0.0003,120]
[344656670,1733695843514,-250.0,0.0003,120]
[344656671,1733695843523,-5000.0,0.0003,60]
[344656672,1733695843532,-5000.0,0.0003,60]
[344656673,1733695843542,-168.15113418,0.0003,2]
[344656674,1733695843551,-32321.55121232,0.0003,2]
[344656675,1733695843563,-374.07344595,0.0003,2]
[344656676,1733695843572,-794.81054342,0.0003,7]
[344656677,1733695843584,-4616.5906557,0.0003,7]
[344656700,1733696051254,-184.34231499,0.00030452,120]
[344656701,1733696051283,-1763.80031578,0.00030452,120]
[344656702,1733696051307,-200.0,0.00030452,120]
[344656703,1733696051331,-162.829883,0.00030452,120]
[344656704,1733696051355,-233024.9743668,0.00030452,60]
[344656705,1733696051379,-300000.0,0.00030452,60]
[344656706,1733696051403,-300000.0,0.00030452,60]
[344656707,1733696051426,-7745.76793729,0.00030452,30]
[344656708,1733696051451,-1831.15356198,0.00030452,120]
[344656709,1733696051476,-982.30264906,0.00030452,30]
[344656710,1733696051501,-520.48434499,0.00030452,120]
[344656711,1733696051527,-3881.88031069,0.00030452,30]
[344656712,1733696051550,-1820.40379579,0.00030452,120]
[344656713,1733696051574,-149693.7829188,0.00030452,60]
[344656714,1733696051598,-1747.89618242,0.00030452,120]
[344656715,1733696051621,-14023.70459655,0.00030452,60]
[344656716,1733696051645,-136202.38658847,0.00030452,30]
[344656717,1733696051668,-49917.0,0.00030452,30]
[344656718,1733696051778,-3058.95783116,0.00030452,30]
[344656719,1733696051804,-5000.0,0.00030452,30]
[344656720,1733696051834,-1326.7,0.00030452,30]
[344656721,1733696051858,-2000.0,0.00030452,30]
[344656722,1733696051882,-5292.93050431,0.00030452,120]
[344656724,1733696218955,161.097798,0.00013973,2]
[344656795,1733697032393,-913.99326305,0.0002,2]
[344656798,1733697032404,-1102.182512,0.0002,2]
[344656807,1733697032483,-7039.39706774,0.0002,2]
[344656809,1733697032492,-300.0,0.00020375,2]
[344656811,1733697032502,-300.0,0.00020376,2]
[344656813,1733697032511,-6210.54140689,0.00020377,2]
[344656815,1733697032520,-4681.20786095,0.00021,2]
[344656817,1733697032529,-161.097798,0.00021209,2]
[344656819,1733697032539,-420.0,0.00022179,2]
[344656821,1733697032549,-420.0,0.00022413,2]
[344656823,1733697032558,-587.0,0.00024141,2]
[344656825,1733697032568,-587.0,0.00024654,2]
[344656827,1733697032577,-1662.446889,0.00026,30]
[344656829,1733697032586,-823.0,0.00026277,2]
[344656831,1733697032596,-917.2497731,0.00026571,2]
[344656833,1733697032606,-24900.0,0.00026578,2]
[344656835,1733697032616,-181.920097,0.00026584,2]
[344656837,1733697032626,-3200.0,0.00026593,2]
[344656838,1733697032636,-357.75558,0.00026688,2]
[344656840,1733697032645,-6731.6875412,0.00026782,2]
[344656842,1733697032654,-197.0,0.00027,2]
[344656844,1733697032664,-823.0,0.00027119,2]
[344656846,1733697032673,-6778.31941885,0.00027536,2]
[344656895,1733697038211,-237.30558115,0.00027536,2]
[344656896,1733697038221,-197.0,0.00027671,2]
[344656897,1733697038230,-418.25,0.000278,2]
[344656898,1733697038241,-1835.31557643,0.00027866,2]
[344656899,1733697038306,-2709.75173197,0.00027866,2]
[344656900,1733697038318,-892.94152952,0.00028,7]
[344656901,1733697038327,-1013.24044,0.00028217,15]
[344656903,1733697038336,-164.2229964,0.00028325,2]
[344656904,1733697038346,-161.097798,0.00028445,2]
[344656905,1733697038355,-545.998,0.000285,2]
[344656906,1733697038364,-1152.0,0.00028601,2]
[344656907,1733697038374,-197.0,0.00028767,2]
[344656908,1733697038383,-500.0,0.00029061,2]
[344656909,1733697038393,-500.0,0.00029061,2]
[344656910,1733697038402,-500.0,0.00029061,2]
[344656911,1733697038411,-500.0,0.00029061,2]
[344656912,1733697038420,-500.0,0.00029061,2]
[344656913,1733697038429,-452.7097955,0.00029061,2]
[344656914,1733697038439,-500.0,0.00029061,2]
[344656915,1733697038449,-500.0,0.00029061,2]
[344656916,1733697038458,-500.0,0.00029061,2]
[344656917,1733697038467,-500.0,0.00029061,2]
[344656918,1733697038476,-500.0,0.00029061,2]
[344656919,1733697038486,-500.0,0.00029061,2]
[344656920,1733697038495,-500.0,0.00029061,2]
[344656921,1733697038504,-500.0,0.00029061,2]
[344656922,1733697038513,-500.0,0.00029061,2]
[344656923,1733697038523,-166.75787317,0.00029061,2]
[344656924,1733697038532,-4898.3926817,0.00029062,30]
[344656925,1733697038913,929.1,0.00030454,30]
[344656926,1733697039218,933.299,0.00030454,30]
[344656947,1733697046255,-894.242857,0.00028238,15]
[344656948,1733697046265,-101.6073183,0.00029062,30]
[344656949,1733697046276,-981.07247843,0.000291,2]
[344656950,1733697046288,-8043.90581256,0.000291,2]
[344656951,1733697046298,-702.0,0.00029831,2]
[344656952,1733697046308,-180.07026278,0.000299,2]
[344656953,1733697046319,-531.11,0.00029989,5]
[344656954,1733697046330,-167.06137191,0.00029999,2]
[344656955,1733697046339,-472.13661629,0.00029999,6]
[344656956,1733697046597,819.02,0.00030454,30]
[344656957,1733697046911,822.56,0.00030454,30]
[344656958,1733697047217,788.26,0.00030454,30]
[344656959,1733697047536,755.0,0.00030454,30]
[344656960,1733697047856,725.0,0.00030454,30]
[344656964,1733697199970,165.906741,0.00013973,2]
[344657023,1733698232545,-788.72745341,0.000199,2]
[344657024,1733698232557,-165.906741,0.00022174,2]
[344657025,1733698232567,-300.0,0.00025,11]
[344657026,1733698232576,-500.0,0.00025,17]
[344657027,1733698232586,-300.0,0.00026173,2]
[344657028,1733698232595,-300.0,0.00026173,2]
[344657029,1733698232605,-3567.95358114,0.00026174,2]
[344657030,1733698232618,-21332.04641886,0.00026174,2]
[344657031,1733698232628,-400.694707,0.00026285,2]
[344657032,1733698232638,-336.1768599,0.00026369,2]
[344657033,1733698232647,-168.3501494,0.00026494,2]
[344657035,1733698232657,-300.0,0.000265,12]
[344657037,1733698232666,-250.0,0.00026558,2]
[344657039,1733698232676,-213.58451149,0.000269,2]
[344657042,1733698232685,-161.0,0.00027,2]
[344657045,1733698232694,-4450.144,0.00027102,2]
[344657046,1733698232704,-7015.625,0.0002716,2]
[344657049,1733698232713,-200.84971406,0.00027397,7]
[344657054,1733698232725,-308.13028594,0.00027397,7]
[344657055,1733698232735,-160.0,0.00027904,3]
[344657057,1733698232744,-300.0,0.00028,13]
[344657059,1733698232754,-3000.81524251,0.000281,10]
[344657061,1733698232765,-2519.09600265,0.000281,10]
[344657063,1733698232776,-752427.02548959,0.000281,10]
[344657065,1733698232788,-10123.09102642,0.000281,10]
[344657073,1733698238374,-240.7508748,0.00028099,2]
[344657074,1733698238385,-500.0,0.00028099,2]
[344657075,1733698238394,-500.0,0.00028099,2]